fUST/lending_fUST_20240524
["ID","MTS","AMOUNT","RATE_DAILY","PERIOD"]
[327803044,1716492652070,-1359.71,0.00025753,6]
[327803045,1716492652079,-500.0,0.00025753,6]
[327803046,1716492652088,-732.61,0.00025753,6]
[327803047,1716492652098,-3354.08,0.00025753,6]
[327803048,1716492652107,-622.83,0.00025753,6]
[327803049,1716492652117,-500.0,0.00025753,6]
[327803050,1716492652126,-8071.03948869,0.00025753,6]
[327803051,1716492652138,-2791.25051131,0.00025753,6]
[327803052,1716492652147,-500.0,0.00025753,6]
[327803053,1716492652156,-500.0,0.00025753,6]
[327803054,1716492652165,-500.0,0.00025753,6]
[327803055,1716492652175,-711.83,0.00025753,6]
[327803056,1716492652184,-6992.92,0.00025753,6]
[327803057,1716492652193,-500.0,0.00025753,6]
[327803058,1716492652202,-3163.02,0.00025753,6]
[327803059,1716492652211,-502.44,0.00025753,6]
[327803060,1716492652220,-500.0,0.00025753,6]
[327803061,1716492652229,-500.0,0.00025753,6]
[327803062,1716492652239,-4161.69,0.00025753,6]
[327803063,1716492652248,-500.0,0.00025753,6]
[327803064,1716492652257,-500.0,0.00025753,6]
[327803065,1716492652266,-457.44,0.00025753,6]
[327803066,1716492652276,-520.36,0.00025753,6]
[327803067,1716492652287,-500.0,0.00025753,6]
[327803068,1716492652296,-500.0,0.00025753,6]
[327803069,1716492652305,-3491.04,0.00025753,6]
[327803070,1716492652315,-500.0,0.00025753,6]
[327803071,1716492652325,-500.0,0.00025753,6]
[327803072,1716492652335,-576.39,0.00025753,6]
[327803073,1716492652344,-599.42,0.00025753,6]
[327803074,1716492652354,-12605.02,0.00025753,6]
[327803075,1716492652363,-675.46,0.00025753,6]
[327803076,1716492652372,-600.0,0.00025775,2]
[327803077,1716492652382,-210.69590206,0.00025786,3]
[327803078,1716492652391,-151.0,0.00025787,5]
[327803079,1716492652403,-151.0,0.00025787,5]
[327803080,1716492652411,-397.00843082,0.00025802,2]
[327803081,1716492652421,-1517.75177049,0.00026,2]
[327803082,1716492652843,-309.58154492,0.00024641,2]
[327803083,1716492652853,-363.26449386,0.00026,2]
[327803084,1716492660985,384.63416588,0.0002178,2]
[327803085,1716492666940,286.21032716,0.00020913,2]
[327803086,1716492750928,1898.21836185,0.00020913,2]
[327803087,1716492780566,161.838419,0.0002014,2]
[327803091,1716492903208,150.92453773,0.00025334,30]
[327803092,1716492903299,150.92453773,0.00024827,120]
[327803093,1716492986149,540.78181637,0.0002,2]
[327803097,1716493534173,-175.69420049,0.00019999,2]
[327803098,1716493534200,-1017.22044952,0.0002,2]
[327803099,1716493648087,-1727.37386881,0.0002,2]
[327803101,1716493746140,-632.87074427,0.000189,2]
[327803102,1716493746164,-5817.46836675,0.0002,2]
[327803103,1716493746184,-312.933861,0.00020258,2]
[327803104,1716493746205,-24900.0,0.00021208,2]
[327803105,1716493746226,-409.77303698,0.00021406,2]
[327803106,1716493746247,-1804.0990921,0.00021506,2]
[327803107,1716493746266,-166.666666,0.00021918,2]
[327803124,1716493832404,-166.666666,0.0002238,2]
[327803125,1716493832414,-7946.90683622,0.00022629,2]
[327803126,1716493832424,-151.0,0.00022786,3]
[327803127,1716493832446,-151.0,0.00022813,3]
[327803128,1716493832456,-166.666666,0.0002299,2]
[327803129,1716493832465,-497.57559866,0.00023,2]
[327803130,1716493832475,-151.0,0.00023124,3]
[327803131,1716493832485,-409.77303691,0.00023177,2]
[327803133,1716493832495,-166.666666,0.000236,2]
[327803135,1716493832504,-632.87074427,0.000239,2]
[327803137,1716493832514,-166.666666,0.00024211,2]
[327803139,1716493832524,-170.214728,0.00024384,2]
[327803141,1716493832534,-555.972814,0.00024384,2]
[327803143,1716493832544,-600.09005,0.000244,2]
[327803145,1716493832554,-2000.0,0.00024557,2]
[327803146,1716493832563,-17638.72966026,0.00024557,3]
[327803147,1716493832572,-175.6616625,0.00024655,2]
[327803148,1716493832582,-500.0,0.00024656,2]
[327803149,1716493832592,-500.0,0.00024656,2]
[327803150,1716493832601,-500.0,0.00024656,2]
[327803151,1716493832611,-500.0,0.00024656,2]
[327803152,1716493832620,-500.0,0.00024656,2]
[327803153,1716493832629,-500.0,0.00024656,2]
[327803154,1716493832638,-500.0,0.00024656,2]
[327803155,1716493832647,-500.0,0.00024656,2]
[327803156,1716493832656,-500.0,0.00024656,2]
[327803157,1716493832665,-516.74229915,0.00024656,2]
[327803158,1716493832674,-500.0,0.00024656,2]
[327803159,1716493832687,-500.0,0.00024656,2]
[327803160,1716493832696,-500.0,0.00024656,2]
[327803161,1716493832705,-500.0,0.00024656,2]
[327803162,1716493832714,-298.00206656,0.00024656,2]
[327803163,1716493832730,-201.99793344,0.00024656,2]
[327803164,1716493832739,-382.54825904,0.00024656,2]
[327803165,1716493832748,-231.27605752,0.00024656,2]
[327803195,1716493838500,-268.72394248,0.00024656,2]
[327803196,1716493838510,-314.0,0.00024656,2]
[327803197,1716493838520,-500.0,0.00024656,2]
[327803198,1716493838529,-500.0,0.00024656,2]
[327803199,1716493838539,-500.0,0.00024656,2]
[327803200,1716493838728,-500.0,0.00024656,2]
[327803201,1716493838738,-500.0,0.00024656,2]
[327803202,1716493838748,-500.0,0.00024656,2]
[327803203,1716493838758,-500.0,0.00024656,2]
[327803204,1716493838767,-500.0,0.00024656,2]
[327803205,1716493838776,-500.0,0.00024656,2]
[327803206,1716493838785,-500.0,0.00024656,2]
[327803207,1716493838794,-500.0,0.00024656,2]
[327803208,1716493838804,-500.0,0.00024656,2]
[327803209,1716493838813,-500.0,0.00024656,2]
[327803210,1716493838823,-500.0,0.00024656,2]
[327803211,1716493838832,-500.0,0.00024656,2]
[327803212,1716493838842,-500.0,0.00024656,2]
[327803213,1716493838855,-500.0,0.00024656,2]
[327803214,1716493838867,-500.0,0.00024656,2]
[327803215,1716493838876,-500.0,0.00024656,2]
[327803216,1716493838886,-500.0,0.00024656,2]
[327803217,1716493838898,-500.0,0.00024656,2]
[327803218,1716493838908,-500.0,0.00024656,2]
[327803219,1716493838917,-500.0,0.00024656,2]
[327803220,1716493838926,-500.0,0.00024656,2]
[327803221,1716493838938,-500.0,0.00024656,2]
[327803222,1716493838947,-500.0,0.00024656,2]
[327803223,1716493838956,-500.0,0.00024656,2]
[327803224,1716493838966,-500.0,0.00024656,2]
[327803225,1716493838974,-402.30226904,0.00024656,2]
[327803226,1716493838984,-500.0,0.00024656,2]
[327803227,1716493838993,-500.0,0.00024656,2]
[327803228,1716493839002,-500.0,0.00024656,2]
[327803229,1716493839012,-500.0,0.00024656,2]
[327803230,1716493839022,-500.0,0.00024656,2]
[327803231,1716493839031,-500.0,0.00024656,2]
[327803232,1716493839041,-193.81985458,0.00024656,2]
[327803233,1716493839050,-500.0,0.00024656,2]
[327803234,1716493839060,-500.0,0.00024656,2]
[327803235,1716493839071,-500.0,0.00024656,2]
[327803236,1716493839082,-500.0,0.00024656,2]
[327803237,1716493839092,-500.0,0.00024656,2]
[327803238,1716493839101,-500.0,0.00024656,2]
[327803239,1716493839111,-500.0,0.00024656,2]
[327803240,1716493839121,-500.0,0.00024656,2]
[327803241,1716493839131,-500.0,0.00024656,2]
[327803242,1716493839141,-500.0,0.00024656,2]
[327803243,1716493839151,-500.0,0.00024656,2]
[327803244,1716493839161,-500.0,0.00024656,2]
[327803245,1716493839171,-500.0,0.00024656,2]
[327803246,1716493839181,-543.47303026,0.00024656,2]
[327803247,1716493839193,-500.0,0.00024656,2]
[327803248,1716493839203,-500.0,0.00024656,2]
[327803249,1716493839213,-500.0,0.00024656,2]
[327803250,1716493839223,-500.0,0.00024656,2]
[327803251,1716493839233,-500.0,0.00024656,2]
[327803252,1716493839243,-500.0,0.00024656,2]
[327803253,1716493839252,-500.0,0.00024656,2]
[327803254,1716493839263,-500.0,0.00024656,2]
[327803255,1716493839272,-500.0,0.00024656,2]
[327803256,1716493839282,-500.0,0.00024656,2]
[327803257,1716493839291,-500.0,0.00024656,2]
[327803258,1716493839301,-500.0,0.00024656,2]
[327803259,1716493839311,-500.0,0.00024656,2]
[327803260,1716493839321,-500.0,0.00024656,2]
[327803261,1716493839330,-500.0,0.00024656,2]
[327803262,1716493839339,-282.98780843,0.00024656,2]
[327803263,1716493839349,-500.0,0.00024656,2]
[327803264,1716493839359,-500.0,0.00024656,2]
[327803265,1716493839368,-500.0,0.00024656,2]
[327803266,1716493839378,-500.0,0.00024656,2]
[327803267,1716493839388,-500.0,0.00024656,2]
[327803268,1716493839397,-500.0,0.00024656,2]
[327803269,1716493839407,-500.0,0.00024656,2]
[327803270,1716493839417,-500.0,0.00024656,2]
[327803271,1716493839426,-400.0,0.00024656,2]
[327803272,1716493839437,-46096.3131193,0.00024657,11]
[327803273,1716493839446,-500.0,0.00024657,2]
[327803274,1716493839456,-500.0,0.00024657,2]
[327803275,1716493839465,-500.0,0.00024657,2]
[327803276,1716493839475,-533.25,0.00024657,2]
[327803277,1716493839485,-500.0,0.00024657,2]
[327803278,1716493839494,-500.0,0.00024657,2]
[327803279,1716493839503,-500.0,0.00024657,2]
[327803280,1716493839515,-500.0,0.00024657,2]
[327803281,1716493839525,-500.0,0.00024657,2]
[327803282,1716493839535,-500.0,0.00024657,2]
[327803283,1716493839545,-500.0,0.00024657,2]
[327803284,1716493839555,-500.0,0.00024657,2]
[327803285,1716493839565,-500.0,0.00024657,2]
[327803286,1716493839574,-500.0,0.00024657,2]
[327803287,1716493839584,-500.0,0.00024657,2]
[327803288,1716493839593,-500.0,0.00024657,2]
[327803289,1716493839603,-618.33,0.00024657,2]
[327803290,1716493839612,-500.0,0.00024657,2]
[327803291,1716493839622,-500.0,0.00024657,2]
[327803292,1716493839631,-500.0,0.00024657,2]
[327803293,1716493839641,-903.26,0.00024657,2]
[327803294,1716493839650,-500.0,0.00024657,2]
[327803295,1716493839661,-500.0,0.00024657,2]
[327803296,1716493839671,-2126.66,0.00024657,2]
[327803297,1716493839680,-500.0,0.00024657,2]
[327803298,1716493839693,-500.0,0.00024657,2]
[327803299,1716493839702,-500.0,0.00024657,2]
[327803300,1716493839712,-2880.3,0.00024657,2]
[327803301,1716493839722,-802.09,0.00024657,2]
[327803302,1716493839731,-631.07,0.00024657,2]
[327803303,1716493839741,-500.0,0.00024657,2]
[327803305,1716493839750,-500.0,0.00024657,2]
[327803307,1716493839760,-500.0,0.00024657,2]
[327803308,1716493839769,-501.16,0.00024657,2]
[327803309,1716493839779,-1856.02,0.00024657,2]
[327803310,1716493839788,-1237.82,0.00024657,2]
[327803311,1716493839798,-396.69434756,0.00024657,2]
[327803312,1716493839808,-662.73,0.00024657,2]
[327803313,1716493839818,-500.0,0.00024657,2]
[327803314,1716493839827,-585.07,0.00024657,2]
[327803315,1716493839837,-1486.52,0.00024657,2]
[327803316,1716493839849,-500.0,0.00024657,2]
[327803317,1716493839860,-517.94,0.00024657,2]
[327803318,1716493839870,-500.0,0.00024657,2]
[327803319,1716493839879,-500.0,0.00024657,2]
[327803320,1716493839890,-539.56562837,0.00024657,2]
[327803367,1716493846365,-168.746906,0.00023314,2]
[327803368,1716493846375,-400.48693657,0.00024657,2]
[327803370,1716494005773,-314.96116069,0.0003,120]
[327803371,1716494005797,-650.0,0.0003,120]
[327803372,1716494005839,-2651.31042716,0.00030949,120]
[327803373,1716494006083,-964.96116069,0.00030949,120]
[327803374,1716494006111,-40.61732276,0.00032,120]
[327803375,1716494006498,-200.0,0.00032,120]
[327803376,1716494006748,-200.0,0.00032,120]
[327803377,1716494006995,-501.11,0.00032,120]
[327803378,1716494007246,-63.85116069,0.00032,120]
[327803379,1716494007272,-136.14883931,0.00032523,120]
[327803380,1716494007520,-63.85116069,0.00032523,120]
[327803381,1716494007545,-200.0,0.00032784,120]
[327803382,1716494007570,-501.11,0.00033,120]
[327803383,1716494007595,-200.0,0.00033267,120]
[327803384,1716494007625,-200.0,0.00033503,120]
[327803385,1716494007648,-947.11760732,0.000339,120]
[327803386,1716494008051,-52.88239268,0.000339,120]
[327803395,1716494460136,1497.26735822,9.999e-05,2]
[327803396,1716494536167,150.93962415,0.00026209,30]
[327803397,1716494536224,150.93962415,0.00025685,120]
[327803398,1716494597894,796.17798317,0.00030949,120]
[327803399,1716494597920,200.0,0.00030949,120]
[327803400,1716494834529,-2198.62155757,0.00020913,2]
[327803401,1716494834565,-435.74669964,0.00020999,2]
[327803402,1716494834596,-500.0,0.00020999,2]
[327803403,1716494834623,-500.0,0.00020999,2]
[327803404,1716494834653,-500.0,0.00020999,2]
[327803405,1716494834683,-500.0,0.00020999,2]
[327803406,1716494834710,-297.35136625,0.00020999,2]
[327803407,1716494834736,-235.0,0.00020999,2]
[327803408,1716494834761,-369.55759549,0.00020999,2]
[327803409,1716494834787,-500.0,0.00020999,2]
[327803410,1716494834821,-500.0,0.00020999,2]
[327803411,1716494834849,-500.0,0.00020999,2]
[327803412,1716494834875,-337.88604395,0.00020999,2]
[327803413,1716494834904,-500.0,0.00020999,2]
[327803414,1716494834931,-229.66268067,0.00020999,2]
[327803415,1716494838369,-270.33731933,0.00020999,2]
[327803416,1716494838391,-500.0,0.00020999,2]
[327803417,1716494838412,-500.0,0.00020999,2]
[327803418,1716494838436,-500.0,0.00020999,2]
[327803419,1716494838458,-500.0,0.00020999,2]
[327803420,1716494838479,-434.13324544,0.00020999,2]
[327803421,1716494838502,-500.0,0.00020999,2]
[327803422,1716494838524,-317.27019928,0.00020999,2]
[327803423,1716494838547,-500.0,0.00020999,2]
[327803424,1716494838572,-500.0,0.00020999,2]
[327803425,1716494838596,-581.56817101,0.00020999,2]
[327803426,1716494838617,-500.0,0.00020999,2]
[327803427,1716494838640,-500.0,0.00020999,2]
[327803428,1716494838663,-500.0,0.00020999,2]
[327803429,1716494838684,-500.0,0.00020999,2]
[327803430,1716494838704,-500.0,0.00020999,2]
[327803431,1716494838726,-500.0,0.00020999,2]
[327803432,1716494838747,-250.0,0.00020999,2]
[327803433,1716494838768,-500.0,0.00020999,2]
[327803434,1716494838792,-500.0,0.00020999,2]
[327803435,1716494838819,-500.0,0.00020999,2]
[327803436,1716494838841,-500.0,0.00020999,2]
[327803437,1716494838866,-500.0,0.00020999,2]
[327803438,1716494838887,-400.0,0.00020999,2]
[327803439,1716494838909,-89.76960494,0.00020999,2]
[327803440,1716494852104,-230.23039506,0.00020999,2]
[327803441,1716494852124,-22291.7941676,0.00021,2]
[327803442,1716494854113,-24539.49148513,0.00021,11]
[327803443,1716494854134,-98779.25447918,0.00021,2]
[327803444,1716494854157,-307.3297777,0.00021037,2]
[327803445,1716494854180,-401.88285427,0.00021137,2]
[327803446,1716494854201,-241.250007,0.00021237,2]
[327803447,1716494854222,-306.85911132,0.00021818,2]
[327803448,1716494854242,-24900.0,0.00021869,2]
[327803449,1716494854264,-179.671762,0.00021918,2]
[327803450,1716494854285,-401.88285427,0.00021992,2]
[327803451,1716494854305,-167.417719,0.0002237,2]
[327803452,1716494854330,-210.95691476,0.00022557,2]
[327803453,1716494854547,-6207.4176583,0.00022626,2]
[327803454,1716494854572,-179.671762,0.00022773,2]
[327803455,1716494854594,-401.88285427,0.00022847,2]
[327803456,1716494854615,-307.32977768,0.0002286,2]
[327803457,1716494854635,-238.956,0.00023316,2]
[327803458,1716494854655,-179.671762,0.00023627,2]
[327803459,1716494854676,-401.88285427,0.00023702,2]
[327803460,1716494854696,-170.214728,0.00024384,2]
[327803461,1716494854717,-528.174173,0.00024384,2]
[327803462,1716494854737,-179.671762,0.00024482,2]
[327803463,1716494854758,-417.48839794,0.00024528,2]
[327803464,1716494854778,-2000.0,0.00024557,2]
[327803465,1716494854802,-401.88285427,0.00024557,2]
[327803466,1716494854832,-4225.76789331,0.00024594,2]
[327803467,1716494854855,-153.0,0.00024633,2]
[327803468,1716494854876,-1869.19773284,0.00024655,2]
[327803469,1716494854898,-176.834875,0.00024655,2]
[327803470,1716494854918,-200.0,0.00024655,2]
[327803471,1716494854939,-2598.22535153,0.00024655,2]
[327803472,1716494854960,-283.68900956,0.00024655,2]
[327803473,1716494854981,-4694.88024875,0.00024655,2]
[327803474,1716494855003,-245.35779436,0.00024655,2]
[327803475,1716494855024,-375.6154137,0.00024655,2]
[327803476,1716494855045,-707.52741015,0.00024655,2]
[327803477,1716494855069,-9403.91722042,0.00024655,2]
[327803478,1716494855088,-17686.87410412,0.00024655,11]
[327803479,1716494855107,-155.02325349,0.00024655,2]
[327803480,1716494855126,-280.21188555,0.00024655,2]
[327803481,1716494855145,-245.80563984,0.00024655,2]
[327803482,1716494855170,-702.80759732,0.00024655,2]
[327803483,1716494855190,-16159.36080594,0.00024655,2]
[327803484,1716494855215,-1581.42130168,0.00024655,2]
[327803485,1716494855235,-238.75882037,0.00024655,2]
[327803486,1716494855257,-1001.46737367,0.00024656,2]
[327803487,1716494855279,-500.0,0.00024657,2]
[327803488,1716494855301,-500.0,0.00024657,2]
[327803489,1716494855331,-500.0,0.00024657,2]
[327803490,1716494855353,-500.0,0.00024657,2]
[327803491,1716494855376,-500.0,0.00024657,2]
[327803492,1716494855400,-500.0,0.00024657,2]
[327803493,1716494855423,-500.0,0.00024657,2]
[327803494,1716494855445,-500.0,0.00024657,2]
[327803495,1716494855467,-500.0,0.00024657,2]
[327803496,1716494855488,-592.57,0.00024657,2]
[327803497,1716494855510,-500.0,0.00024657,2]
[327803498,1716494855531,-500.0,0.00024657,2]
[327803499,1716494855551,-500.0,0.00024657,2]
[327803500,1716494855579,-399.5421419,0.00024657,2]
[327803501,1716494855600,-500.0,0.00024657,2]
[327803502,1716494855620,-500.0,0.00024657,2]
[327803503,1716494855640,-500.0,0.00024657,2]
[327803504,1716494855661,-500.0,0.00024657,2]
[327803505,1716494855681,-197.09584669,0.00024657,2]
[327803506,1716494855702,-500.0,0.00024657,2]
[327803507,1716494855721,-865.48,0.00024657,2]
[327803508,1716494855741,-500.0,0.00024657,2]
[327803509,1716494855762,-643.73,0.00024657,2]
[327803510,1716494855782,-500.0,0.00024657,2]
[327803511,1716494855802,-500.0,0.00024657,2]
[327803512,1716494855828,-548.76882326,0.00024657,2]
[327803513,1716494855848,-639.42,0.00024657,2]
[327803514,1716494855867,-500.0,0.00024657,2]
[327803515,1716494855887,-540.99,0.00024657,2]
[327803516,1716494855907,-500.0,0.00024657,2]
[327803517,1716494855925,-500.0,0.00024657,2]
[327803518,1716494855944,-515.6,0.00024657,2]
[327803519,1716494855964,-500.0,0.00024657,2]
[327803520,1716494855985,-500.0,0.00024657,2]
[327803521,1716494856005,-3291.05,0.00024657,2]
[327803522,1716494856026,-500.9,0.00024657,2]
[327803523,1716494856046,-1353.89,0.00024657,2]
[327803524,1716494856068,-500.0,0.00024657,2]
[327803525,1716494856090,-1822.82,0.00024657,2]
[327803526,1716494856110,-808.6,0.00024657,2]
[327803527,1716494856136,-500.0,0.00024657,2]
[327803528,1716494856157,-500.0,0.00024657,2]
[327803529,1716494856180,-902.4,0.00024657,2]
[327803530,1716494856201,-563.99373487,0.00024657,2]
[327803531,1716494856221,-500.0,0.00024657,2]
[327803532,1716494856242,-500.0,0.00024657,2]
[327803533,1716494856267,-614.73,0.00024657,2]
[327803534,1716494856287,-500.0,0.00024657,2]
[327803535,1716494856307,-383.84,0.00024657,2]
[327803536,1716494856333,-500.0,0.00024657,2]
[327803537,1716494856353,-500.0,0.00024657,2]
[327803538,1716494856372,-500.0,0.00024657,2]
[327803539,1716494856394,-500.0,0.00024657,2]
[327803540,1716494856415,-500.0,0.00024657,2]
[327803541,1716494856435,-417.01722057,0.00024657,2]
[327803542,1716494856455,-500.0,0.00024657,2]
[327803543,1716494856476,-500.0,0.00024657,2]
[327803544,1716494856499,-500.0,0.00024657,2]
[327803545,1716494856521,-500.0,0.00024657,2]
[327803546,1716494856542,-500.0,0.00024657,2]
[327803547,1716494856563,-500.0,0.00024657,2]
[327803548,1716494856589,-500.0,0.00024657,2]
[327803549,1716494856610,-865.62,0.00024657,2]
[327803550,1716494856629,-500.0,0.00024657,2]
[327803551,1716494856649,-1012.9,0.00024657,2]
[327803552,1716494856669,-500.0,0.00024657,2]
[327803553,1716494856690,-2038.05,0.00024657,2]
[327803554,1716494856709,-975.68,0.00024657,2]
[327803555,1716494856729,-500.0,0.00024657,2]
[327803556,1716494856749,-566.78,0.00024657,2]
[327803557,1716494856769,-500.0,0.00024657,2]
[327803558,1716494856788,-2760.29,0.00024657,2]
[327803559,1716494856807,-768.67,0.00024657,2]
[327803560,1716494856832,-500.0,0.00024657,2]
[327803561,1716494856852,-604.78,0.00024657,2]
[327803562,1716494856871,-1100.49,0.00024657,2]
[327803563,1716494856890,-642.54,0.00024657,2]
[327803564,1716494856909,-500.0,0.00024657,2]
[327803565,1716494856929,-321.99348109,0.00024657,2]
[327803566,1716494856948,-500.0,0.00024657,2]
[327803567,1716494856968,-500.0,0.00024657,2]
[327803568,1716494856987,-1778.69,0.00024657,2]
[327803569,1716494857007,-500.0,0.00024657,2]
[327803570,1716494857026,-500.0,0.00024657,2]
[327803571,1716494857045,-500.0,0.00024657,2]
[327803572,1716494857065,-635.11,0.00024657,2]
[327803573,1716494857088,-500.0,0.00024657,2]
[327803574,1716494857109,-1085.07,0.00024657,2]
[327803575,1716494857128,-500.0,0.00024657,2]
[327803576,1716494857148,-1424.58,0.00024657,2]
[327803577,1716494857170,-500.0,0.00024657,2]
[327803578,1716494857193,-500.0,0.00024657,2]
[327803579,1716494857215,-500.0,0.00024657,2]
[327803580,1716494857235,-500.0,0.00024657,2]
[327803581,1716494857256,-1640.58,0.00024657,2]
[327803582,1716494857278,-500.0,0.00024657,2]
[327803583,1716494857299,-500.0,0.00024657,2]
[327803584,1716494857322,-1263.11,0.00024657,2]
[327803585,1716494857342,-500.0,0.00024657,2]
[327803586,1716494857362,-500.0,0.00024657,2]
[327803587,1716494857382,-500.0,0.00024657,2]
[327803588,1716494857403,-1177.0,0.00024657,2]
[327803589,1716494857423,-500.0,0.00024657,2]
[327803590,1716494857442,-748.68,0.00024657,2]
[327803591,1716494857462,-841.23,0.00024657,2]
[327803592,1716494857482,-500.0,0.00024657,2]
[327803593,1716494857502,-868.93,0.00024657,2]
[327803594,1716494857523,-500.0,0.00024657,2]
[327803595,1716494857542,-342.91430405,0.00024657,2]
[327803596,1716494857562,-500.0,0.00024657,2]
[327803597,1716494857586,-500.0,0.00024657,2]
[327803598,1716494857605,-500.0,0.00024657,2]
[327803599,1716494857625,-976.74,0.00024657,2]
[327803600,1716494857645,-664.07,0.00024657,2]
[327803601,1716494857666,-1473.62,0.00024657,2]
[327803602,1716494857816,-1473.62,0.00024657,3]
[327803603,1716494857841,-1473.62,0.00024657,4]
[327803604,1716494857861,-1473.62,0.00024657,5]
[327803605,1716494857883,-1473.62,0.00024657,6]
[327803606,1716494857905,-1473.62,0.00024657,7]
[327803607,1716494857929,-1473.62,0.00024657,8]
[327803608,1716494857949,-1473.62,0.00024657,9]
[327803609,1716494857974,-1034.39,0.00024657,2]
[327803610,1716494857994,-1473.62,0.00024657,10]
[327803611,1716494858014,-1473.62,0.00024657,11]
[327803612,1716494858034,-1473.62,0.00024657,12]
[327803613,1716494858058,-1394.65,0.00024657,2]
[327803614,1716494858084,-2026.08,0.00024657,2]
[327803615,1716494858104,-1182.99,0.00024657,2]
[327803616,1716494858124,-580.31,0.00024657,2]
[327803617,1716494858145,-500.0,0.00024657,2]
[327803618,1716494858169,-500.0,0.00024657,2]
[327803619,1716494858190,-500.0,0.00024657,2]
[327803620,1716494858210,-549.35,0.00024657,2]
[327803621,1716494858230,-314.05532137,0.00024657,2]
[327803622,1716494858253,-500.0,0.00024657,2]
[327803623,1716494858273,-500.0,0.00024657,2]
[327803624,1716494858293,-3316.44,0.00024657,2]
[327803625,1716494858312,-500.0,0.00024657,2]
[327803626,1716494858336,-2467.24,0.00024657,2]
[327803627,1716494858356,-500.0,0.00024657,2]
[327803628,1716494858376,-500.0,0.00024657,2]
[327803629,1716494858396,-1215.8,0.00024657,2]
[327803630,1716494858415,-594.2,0.00024657,2]
[327803631,1716494858435,-1254.65,0.00024657,2]
[327803632,1716494858454,-500.0,0.00024657,2]
[327803633,1716494858474,-500.0,0.00024657,2]
[327803634,1716494858495,-1202.49,0.00024657,2]
[327803635,1716494858515,-267.80707084,0.00024657,2]
[327803636,1716494858535,-500.0,0.00024657,2]
[327803637,1716494858556,-673.99,0.00024657,2]
[327803638,1716494858581,-500.0,0.00024657,2]
[327803639,1716494858601,-500.0,0.00024657,2]
[327803640,1716494858622,-9211.83,0.00024657,2]
[327803641,1716494858642,-500.0,0.00024657,2]
[327803642,1716494858662,-6880.63,0.00024657,2]
[327803643,1716494858681,-870.69,0.00024657,2]
[327803644,1716494858701,-500.0,0.00024657,2]
[327803645,1716494858722,-5853.33,0.00024657,2]
[327803646,1716494858742,-1292.03,0.00024657,2]
[327803647,1716494858762,-500.0,0.00024657,2]
[327803648,1716494858782,-10562.33,0.00024657,2]
[327803649,1716494858802,-3155.53,0.00024657,2]
[327803650,1716494858825,-595.83,0.00024657,2]
[327803651,1716494858845,-188.19365416,0.00024657,2]
[327803652,1716494858865,-500.0,0.00024657,2]
[327803653,1716494858885,-1026.57,0.00024657,2]
[327803654,1716494858904,-516.1,0.00024657,2]
[327803655,1716494858926,-500.0,0.00024657,2]
[327803656,1716494858947,-2054.3,0.00024657,2]
[327803657,1716494858968,-500.0,0.00024657,2]
[327803658,1716494858988,-2054.3,0.00024657,3]
[327803659,1716494859009,-2054.3,0.00024657,4]